[Event "*** SCC Grand Prix: Titled Tuesday Blitz"]
[Site "Chess.com"]
[Date "2020.06.23"]
[Round "3"]
[White "Fusikk"]
[Black "profofchess"]
[Result "1/2-1/2"]
[WhiteElo "2552"]
[BlackElo "2385"]
[TimeControl "180+1"]
[EndTime "10:28:44 PDT"]
[Termination "Game drawn by repetition"]

1. e4 {[%clk 0:03:00.9]} 1... e6 {[%clk 0:03:00.2]} 2. d4 {[%clk 0:03:00]} 2...
d5 {[%clk 0:03:01.1]} 3. Nd2 {[%clk 0:02:59.8]} 3... Nf6 {[%clk 0:03:01]} 4. e5
{[%clk 0:02:59.1]} 4... Nfd7 {[%clk 0:03:01.5]} 5. Bd3 {[%clk 0:02:58.6]} 5...
c5 {[%clk 0:03:02]} 6. c3 {[%clk 0:02:58.7]} 6... Nc6 {[%clk 0:03:02.7]} 7. Ne2
{[%clk 0:02:58.3]} 7... cxd4 {[%clk 0:03:03.1]} 8. cxd4 {[%clk 0:02:59.2]} 8...
f6 {[%clk 0:03:04]} 9. exf6 {[%clk 0:02:58.2]} 9... Nxf6 {[%clk 0:03:04.9]} 10.
Nf3 {[%clk 0:02:58.4]} 10... Bd6 {[%clk 0:03:04.6]} 11. O-O {[%clk 0:02:55.6]}
11... Qc7 {[%clk 0:03:04.7]} 12. Bg5 {[%clk 0:02:54.2]} 12... O-O {[%clk
0:03:03.2]} 13. Qc2 {[%clk 0:02:49.9]} 13... Nb4 {[%clk 0:02:28.8]} 14. Qxc7
{[%clk 0:02:46.2]} 14... Bxc7 {[%clk 0:02:29.7]} 15. Bb1 {[%clk 0:02:43.5]}
15... Bd7 {[%clk 0:02:20.1]} 16. a3 {[%clk 0:02:42.2]} 16... Bb5 {[%clk
0:02:13.1]} 17. Re1 {[%clk 0:02:36.1]} 17... Nd3 {[%clk 0:02:07.4]} 18. Bxd3
{[%clk 0:02:33.5]} 18... Bxd3 {[%clk 0:02:08.3]} 19. Nf4 {[%clk 0:02:33.9]}
19... Bxf4 {[%clk 0:01:40.7]} 20. Bxf4 {[%clk 0:02:34.8]} 20... Ne4 {[%clk
0:01:33.2]} 21. Be3 {[%clk 0:02:21.2]} 21... Rac8 {[%clk 0:01:20.3]} 22. Rac1
{[%clk 0:02:19.1]} 22... Nd6 {[%clk 0:01:02.5]} 23. Rxc8 {[%clk 0:02:12.3]}
23... Rxc8 {[%clk 0:00:58.4]} 24. Rc1 {[%clk 0:02:13.2]} 24... Rxc1+ {[%clk
0:00:57.7]} 25. Bxc1 {[%clk 0:02:14.1]} 25... Be4 {[%clk 0:00:45.5]} 26. Ne5
{[%clk 0:02:10.4]} 26... Nf5 {[%clk 0:00:42.5]} 27. Be3 {[%clk 0:02:03.9]} 27...
Kf8 {[%clk 0:00:35.9]} 28. Kf1 {[%clk 0:02:01.2]} 28... Ke7 {[%clk 0:00:29.9]}
29. g4 {[%clk 0:01:54.9]} 29... Nxe3+ {[%clk 0:00:23.4]} 30. fxe3 {[%clk
0:01:55.8]} 30... Kd6 {[%clk 0:00:22.7]} 31. g5 {[%clk 0:01:53.3]} 31... a5
{[%clk 0:00:19.2]} 32. Ke2 {[%clk 0:01:41.1]} 32... b6 {[%clk 0:00:17.5]} 33. b4
{[%clk 0:01:37.5]} 33... axb4 {[%clk 0:00:17]} 34. axb4 {[%clk 0:01:38.4]} 34...
Ke7 {[%clk 0:00:16.4]} 35. Kf2 {[%clk 0:01:33.4]} 35... Kd6 {[%clk 0:00:15.9]}
36. Kg3 {[%clk 0:01:32.8]} 36... Ke7 {[%clk 0:00:16.1]} 37. Kf4 {[%clk
0:01:32.9]} 37... Kd6 {[%clk 0:00:16.1]} 38. h4 {[%clk 0:01:33]} 38... Bc2
{[%clk 0:00:16]} 39. h5 {[%clk 0:01:32.7]} 39... Be4 {[%clk 0:00:16]} 40. h6
{[%clk 0:01:32.8]} 40... gxh6 {[%clk 0:00:15.6]} 41. gxh6 {[%clk 0:01:33.7]}
41... Ke7 {[%clk 0:00:15.8]} 42. Kg5 {[%clk 0:01:30]} 42... Bc2 {[%clk
0:00:15.7]} 43. Ng4 {[%clk 0:01:17.3]} 43... Kf7 {[%clk 0:00:14.2]} 44. Nh2
{[%clk 0:01:11.9]} 44... Ke7 {[%clk 0:00:13.8]} 45. Nf1 {[%clk 0:01:10.5]} 45...
Bd3 {[%clk 0:00:13.4]} 46. Nd2 {[%clk 0:01:09.9]} 46... Kf7 {[%clk 0:00:13]} 47.
Nf3 {[%clk 0:01:04.5]} 47... Ke7 {[%clk 0:00:13.4]} 48. Ne5 {[%clk 0:00:56.5]}
48... Be4 {[%clk 0:00:13.8]} 49. Kh5 {[%clk 0:00:56.6]} 49... Bf5 {[%clk
0:00:13.2]} 50. Kh4 {[%clk 0:00:54.6]} 50... Be4 {[%clk 0:00:13.5]} 51. Kg5
{[%clk 0:00:54.5]} 51... Bf5 {[%clk 0:00:13.6]} 52. Nf3 {[%clk 0:00:53.2]} 52...
Be4 {[%clk 0:00:13.7]} 53. Ne5 {[%clk 0:00:45.7]} 1/2-1/2

[Event "*** SCC Grand Prix: Titled Tuesday Blitz"]
[Site "Chess.com"]
[Date "2020.06.23"]
[Round "3"]
[White "adriangschnitzer"]
[Black "MikaelyanArman"]
[Result "1-0"]
[WhiteElo "2469"]
[BlackElo "2788"]
[TimeControl "180+1"]
[EndTime "10:28:46 PDT"]
[Termination "adriangschnitzer won by resignation"]

1. e4 {[%clk 0:03:00.9]} 1... e5 {[%clk 0:02:57.5]} 2. Nf3 {[%clk 0:03:00.1]}
2... Nc6 {[%clk 0:02:57.9]} 3. d4 {[%clk 0:02:59.9]} 3... exd4 {[%clk 0:02:58]}
4. Bc4 {[%clk 0:02:59.5]} 4... d6 {[%clk 0:02:50.5]} 5. Nxd4 {[%clk 0:02:49.6]}
5... Nf6 {[%clk 0:02:50]} 6. Nc3 {[%clk 0:02:47.9]} 6... Be7 {[%clk 0:02:48.2]}
7. O-O {[%clk 0:02:46.1]} 7... O-O {[%clk 0:02:48.1]} 8. Re1 {[%clk 0:02:45.2]}
8... Bd7 {[%clk 0:02:42.2]} 9. a4 {[%clk 0:02:42.1]} 9... Re8 {[%clk 0:02:39.9]}
10. Nf5 {[%clk 0:02:20.3]} 10... Bxf5 {[%clk 0:02:31.4]} 11. exf5 {[%clk
0:02:21.2]} 11... Qd7 {[%clk 0:02:31.8]} 12. Nd5 {[%clk 0:02:14.9]} 12... Nxd5
{[%clk 0:02:25.8]} 13. Qxd5 {[%clk 0:02:15.8]} 13... Bf6 {[%clk 0:02:24.8]} 14.
Bf4 {[%clk 0:02:04.6]} 14... Nb4 {[%clk 0:02:16.8]} 15. Qxb7 {[%clk 0:01:54.4]}
15... Rab8 {[%clk 0:01:57.6]} 16. Rxe8+ {[%clk 0:01:32.2]} 16... Qxe8 {[%clk
0:01:58.5]} 17. Qxc7 {[%clk 0:01:22.3]} 17... Rd8 {[%clk 0:01:45.1]} 18. c3
{[%clk 0:01:11.9]} 18... d5 {[%clk 0:01:28.2]} 19. Bb5 {[%clk 0:00:58.9]} 19...
Qe4 {[%clk 0:01:12.5]} 20. cxb4 {[%clk 0:00:55.3]} 20... h5 {[%clk 0:01:09.5]}
21. Bd2 {[%clk 0:00:32.4]} 21... Qxf5 {[%clk 0:00:58.1]} 22. Qxa7 {[%clk
0:00:28.7]} 22... Bxb2 {[%clk 0:00:57.1]} 23. Re1 {[%clk 0:00:26.3]} 23... d4
{[%clk 0:00:54.2]} 24. Qe7 {[%clk 0:00:24.3]} 24... Rb8 {[%clk 0:00:45.6]} 25.
Qe5 {[%clk 0:00:21.7]} 25... Qc8 {[%clk 0:00:44.3]} 26. Bd3 {[%clk 0:00:20.2]}
26... Bc3 {[%clk 0:00:36.6]} 27. Qxh5 {[%clk 0:00:16.7]} 27... g6 {[%clk
0:00:29.3]} 28. Bxg6 {[%clk 0:00:16]} 28... fxg6 {[%clk 0:00:11.6]} 29. Qxg6+
{[%clk 0:00:16.9]} 29... Kh8 {[%clk 0:00:11.4]} 30. Re7 {[%clk 0:00:12.2]} 30...
Qg8 {[%clk 0:00:03.7]} 31. Qh6+ {[%clk 0:00:10.7]} 1-0

[Event "*** SCC Grand Prix: Titled Tuesday Blitz"]
[Site "Chess.com"]
[Date "2020.06.23"]
[Round "3"]
[White "axlbvRR"]
[Black "Julianos82"]
[Result "0-1"]
[WhiteElo "1865"]
[BlackElo "2243"]
[TimeControl "180+1"]
[EndTime "10:28:46 PDT"]
[Termination "Julianos82 won by checkmate"]

1. d4 {[%clk 0:03:00]} 1... e6 {[%clk 0:02:58.7]} 2. Bf4 {[%clk 0:02:57.3]} 2...
b6 {[%clk 0:02:57.9]} 3. e3 {[%clk 0:02:57.1]} 3... Bb7 {[%clk 0:02:58.2]} 4.
Nf3 {[%clk 0:02:55.7]} 4... f5 {[%clk 0:02:58]} 5. c4 {[%clk 0:02:54.1]} 5...
Nf6 {[%clk 0:02:58.2]} 6. Nc3 {[%clk 0:02:52.7]} 6... Bb4 {[%clk 0:02:58.1]} 7.
Bd3 {[%clk 0:02:52.1]} 7... O-O {[%clk 0:02:55.3]} 8. O-O {[%clk 0:02:50.9]}
8... Bxc3 {[%clk 0:02:55.5]} 9. bxc3 {[%clk 0:02:50.7]} 9... Ne4 {[%clk
0:02:55.9]} 10. Rc1 {[%clk 0:02:49]} 10... d6 {[%clk 0:02:55.2]} 11. Nd2 {[%clk
0:02:43]} 11... Nd7 {[%clk 0:02:53.9]} 12. f3 {[%clk 0:02:36]} 12... Nxd2 {[%clk
0:02:44.8]} 13. Qxd2 {[%clk 0:02:35.2]} 13... e5 {[%clk 0:02:44.8]} 14. Bg3
{[%clk 0:02:33.3]} 14... Qf6 {[%clk 0:02:40.8]} 15. Rce1 {[%clk 0:02:23.5]}
15... Rae8 {[%clk 0:02:31.4]} 16. Qf2 {[%clk 0:02:10.3]} 16... f4 {[%clk
0:02:18.3]} 17. dxe5 {[%clk 0:01:35.1]} 17... fxg3 {[%clk 0:01:50.1]} 18. exf6
{[%clk 0:01:33.4]} 18... gxf2+ {[%clk 0:01:49.2]} 19. Rxf2 {[%clk 0:01:32.1]}
19... Rxf6 {[%clk 0:01:48.5]} 20. e4 {[%clk 0:01:28.8]} 20... Ne5 {[%clk
0:01:45.6]} 21. Bf1 {[%clk 0:01:26.6]} 21... Ba6 {[%clk 0:01:45.5]} 22. Rd2
{[%clk 0:01:14.8]} 22... Bxc4 {[%clk 0:01:42.4]} 23. Kf2 {[%clk 0:01:04.1]}
23... Bxf1 {[%clk 0:01:31.5]} 24. Kxf1 {[%clk 0:01:02.1]} 24... g5 {[%clk
0:01:25.4]} 25. Kg1 {[%clk 0:00:59.9]} 25... Kg7 {[%clk 0:01:24.1]} 26. Rf1
{[%clk 0:00:57.2]} 26... Ref8 {[%clk 0:01:23.3]} 27. Rdf2 {[%clk 0:00:56.3]}
27... h5 {[%clk 0:01:21.1]} 28. h3 {[%clk 0:00:54]} 28... a5 {[%clk 0:01:18.2]}
29. a3 {[%clk 0:00:52.4]} 29... Kg6 {[%clk 0:01:18.1]} 30. Kh2 {[%clk
0:00:51.8]} 30... Kg7 {[%clk 0:01:14.3]} 31. Kg3 {[%clk 0:00:50.8]} 31... Nd3
{[%clk 0:01:10]} 32. Rd2 {[%clk 0:00:49.7]} 32... Nc5 {[%clk 0:01:09.9]} 33. Rd5
{[%clk 0:00:48.7]} 33... Nxe4+ {[%clk 0:01:07.1]} 34. Kh2 {[%clk 0:00:41.9]}
34... Kg6 {[%clk 0:01:01.7]} 35. Re1 {[%clk 0:00:40.4]} 35... Nc5 {[%clk
0:00:58.4]} 36. Re7 {[%clk 0:00:39.4]} 36... R6f7 {[%clk 0:00:58]} 37. Re3
{[%clk 0:00:38.7]} 37... a4 {[%clk 0:00:56.1]} 38. Re2 {[%clk 0:00:36.9]} 38...
Rf5 {[%clk 0:00:51.8]} 39. Rd4 {[%clk 0:00:36.6]} 39... R8f7 {[%clk 0:00:51]}
40. Re8 {[%clk 0:00:35.8]} 40... Re5 {[%clk 0:00:49.1]} 41. Rg8+ {[%clk
0:00:33.3]} 41... Rg7 {[%clk 0:00:48.7]} 42. Rc8 {[%clk 0:00:32.4]} 42... Re2
{[%clk 0:00:47.6]} 43. Kg3 {[%clk 0:00:28.1]} 43... h4+ {[%clk 0:00:41.5]} 44.
Kg4 {[%clk 0:00:26.1]} 44... Rxg2# {[%clk 0:00:40.7]} 0-1

[Event "*** SCC Grand Prix: Titled Tuesday Blitz"]
[Site "Chess.com"]
[Date "2020.06.23"]
[Round "3"]
[White "51616516516"]
[Black "shnitez"]
[Result "1-0"]
[WhiteElo "2333"]
[BlackElo "2507"]
[TimeControl "180+1"]
[EndTime "10:28:47 PDT"]
[Termination "51616516516 won on time"]

1. d4 {[%clk 0:03:00.9]} 1... Nf6 {[%clk 0:02:59.5]} 2. c4 {[%clk 0:02:59.8]}
2... e6 {[%clk 0:02:59]} 3. Nc3 {[%clk 0:02:59.8]} 3... Bb4 {[%clk 0:02:58.8]}
4. Qc2 {[%clk 0:03:00.2]} 4... b6 {[%clk 0:02:58.6]} 5. e4 {[%clk 0:02:58.6]}
5... Bb7 {[%clk 0:02:56.1]} 6. Bd3 {[%clk 0:02:50]} 6... c5 {[%clk 0:02:49.4]}
7. d5 {[%clk 0:02:41.8]} 7... exd5 {[%clk 0:02:45]} 8. exd5 {[%clk 0:02:41.5]}
8... O-O {[%clk 0:02:34.3]} 9. Ne2 {[%clk 0:02:41.6]} 9... d6 {[%clk 0:02:31.5]}
10. O-O {[%clk 0:02:40.9]} 10... Re8 {[%clk 0:02:02.1]} 11. Bg5 {[%clk
0:02:27.8]} 11... h6 {[%clk 0:02:01.7]} 12. Bh4 {[%clk 0:02:21.8]} 12... Bxc3
{[%clk 0:01:50.6]} 13. Nxc3 {[%clk 0:02:22.7]} 13... Nbd7 {[%clk 0:01:46.7]} 14.
f4 {[%clk 0:02:17.6]} 14... a6 {[%clk 0:01:39.4]} 15. a4 {[%clk 0:02:14.6]}
15... Qe7 {[%clk 0:01:21.5]} 16. Rf3 {[%clk 0:02:07]} 16... Qf8 {[%clk
0:01:07.4]} 17. Raf1 {[%clk 0:01:51.2]} 17... Bc8 {[%clk 0:00:45.1]} 18. Bf5
{[%clk 0:01:47.5]} 18... Rb8 {[%clk 0:00:28]} 19. g4 {[%clk 0:01:43.1]} 19... g6
{[%clk 0:00:17.5]} 20. g5 {[%clk 0:01:08.7]} 20... Nh7 {[%clk 0:00:06.2]} 21.
Bxg6 {[%clk 0:01:06.6]} 21... fxg6 {[%clk 0:00:05.8]} 22. Qxg6+ {[%clk
0:01:07.5]} 22... Kh8 {[%clk 0:00:03.1]} 23. f5 {[%clk 0:00:37.1]} 23... Ne5
{[%clk 0:00:01.7]} 24. Qh5 {[%clk 0:00:29]} 24... Nxf3+ {[%clk 0:00:01.8]} 25.
Rxf3 {[%clk 0:00:29.9]} 25... Qg7 {[%clk 0:00:01.6]} 26. Qxe8+ {[%clk
0:00:28.9]} 26... Qf8 {[%clk 0:00:01.5]} 27. Qg6 {[%clk 0:00:20.5]} 27... hxg5
{[%clk 0:00:01.7]} 28. Bxg5 {[%clk 0:00:17.9]} 28... Rb7 {[%clk 0:00:02.4]} 29.
Rh3 {[%clk 0:00:16]} 29... Rg7 {[%clk 0:00:01.4]} 30. Rxh7+ {[%clk 0:00:04.6]}
30... Rxh7 {[%clk 0:00:01.1]} 31. Bf6+ {[%clk 0:00:05]} 1-0

[Event "*** SCC Grand Prix: Titled Tuesday Blitz"]
[Site "Chess.com"]
[Date "2020.06.23"]
[Round "3"]
[White "Skatchkov_V"]
[Black "Ural_bogatyr"]
[Result "1-0"]
[WhiteElo "2544"]
[BlackElo "2346"]
[TimeControl "180+1"]
[EndTime "10:28:48 PDT"]
[Termination "Skatchkov_V won by resignation"]

1. d4 {[%clk 0:03:00.8]} 1... Nf6 {[%clk 0:02:59.7]} 2. c4 {[%clk 0:03:01.1]}
2... e5 {[%clk 0:02:59.4]} 3. dxe5 {[%clk 0:02:58.7]} 3... Ng4 {[%clk
0:02:59.6]} 4. g3 {[%clk 0:02:45.1]} 4... Nxe5 {[%clk 0:02:57.8]} 5. b3 {[%clk
0:02:42]} 5... Qf6 {[%clk 0:02:24.9]} 6. Nc3 {[%clk 0:01:55.2]} 6... Bb4 {[%clk
0:01:22.6]} 7. Bd2 {[%clk 0:01:04]} 7... Ng4 {[%clk 0:01:15.3]} 8. f3 {[%clk
0:00:30.1]} 8... Bxc3 {[%clk 0:01:07.6]} 9. fxg4 {[%clk 0:00:30.7]} 9... Bxa1
{[%clk 0:01:01.4]} 10. g5 {[%clk 0:00:31.3]} 10... Qb2 {[%clk 0:00:37.6]} 11.
Nf3 {[%clk 0:00:31.8]} 11... O-O {[%clk 0:00:34.2]} 12. Bg2 {[%clk 0:00:32.5]}
12... Qxa2 {[%clk 0:00:34.1]} 13. O-O {[%clk 0:00:32.5]} 13... Bb2 {[%clk
0:00:34.2]} 14. Qc2 {[%clk 0:00:32.9]} 14... Nc6 {[%clk 0:00:10.5]} 15. Kh1
{[%clk 0:00:33.4]} 15... Qa3 {[%clk 0:00:05.7]} 16. Rb1 {[%clk 0:00:33.1]} 16...
Bd4 {[%clk 0:00:05.5]} 17. b4 {[%clk 0:00:24.6]} 17... a5 {[%clk 0:00:02.6]} 18.
b5 {[%clk 0:00:25.1]} 18... Nb4 {[%clk 0:00:02.5]} 19. Bxb4 {[%clk 0:00:07.3]}
19... axb4 {[%clk 0:00:03.4]} 20. Nxd4 {[%clk 0:00:08.1]} 20... d6 {[%clk
0:00:04.3]} 21. Qe4 {[%clk 0:00:08]} 21... Qc3 {[%clk 0:00:03.4]} 22. Rf1 {[%clk
0:00:08.1]} 22... g6 {[%clk 0:00:02.8]} 23. b6 {[%clk 0:00:06.4]} 23... cxb6
{[%clk 0:00:02.1]} 24. Nb5 {[%clk 0:00:07]} 24... b3 {[%clk 0:00:03]} 25. Nxc3
{[%clk 0:00:07.1]} 1-0

[Event "*** SCC Grand Prix: Titled Tuesday Blitz"]
[Site "Chess.com"]
[Date "2020.06.23"]
[Round "3"]
[White "QueenOfTactics90"]
[Black "VladimirBugayev"]
[Result "0-1"]
[WhiteElo "1935"]
[BlackElo "2267"]
[TimeControl "180+1"]
[EndTime "10:28:48 PDT"]
[Termination "VladimirBugayev won on time"]

1. e4 {[%clk 0:03:00.9]} 1... c6 {[%clk 0:02:59.8]} 2. d4 {[%clk 0:03:00.1]}
2... d5 {[%clk 0:03:00]} 3. e5 {[%clk 0:03:00.2]} 3... Bf5 {[%clk 0:02:59.3]} 4.
h4 {[%clk 0:03:00.9]} 4... h6 {[%clk 0:02:59.2]} 5. c4 {[%clk 0:02:56.9]} 5...
e6 {[%clk 0:02:51.8]} 6. Ne2 {[%clk 0:02:55.2]} 6... Bb4+ {[%clk 0:02:33.7]} 7.
Bd2 {[%clk 0:02:48.7]} 7... Bxd2+ {[%clk 0:02:25.4]} 8. Nxd2 {[%clk 0:02:47.7]}
8... Bd3 {[%clk 0:02:14.6]} 9. Qb3 {[%clk 0:02:22.4]} 9... Bxe2 {[%clk
0:01:57.8]} 10. Bxe2 {[%clk 0:02:17.1]} 10... Qb6 {[%clk 0:01:52.5]} 11. Qc3
{[%clk 0:02:12.4]} 11... Ne7 {[%clk 0:01:33.8]} 12. O-O {[%clk 0:02:11.2]} 12...
O-O {[%clk 0:01:33.3]} 13. a4 {[%clk 0:02:10.8]} 13... a5 {[%clk 0:01:24.8]} 14.
g4 {[%clk 0:01:58.1]} 14... Rd8 {[%clk 0:01:13]} 15. c5 {[%clk 0:01:47.4]} 15...
Qc7 {[%clk 0:01:03.7]} 16. f4 {[%clk 0:01:45.3]} 16... b6 {[%clk 0:01:02]} 17.
f5 {[%clk 0:01:34.3]} 17... exf5 {[%clk 0:01:01.2]} 18. gxf5 {[%clk 0:01:34]}
18... bxc5 {[%clk 0:01:01.8]} 19. Qxc5 {[%clk 0:01:33.8]} 19... Na6 {[%clk
0:00:24.4]} 20. Bxa6 {[%clk 0:01:20.8]} 20... Rxa6 {[%clk 0:00:24.1]} 21. f6
{[%clk 0:01:21.1]} 21... Ng6 {[%clk 0:00:24]} 22. h5 {[%clk 0:01:16.2]} 22...
Nf8 {[%clk 0:00:23.5]} 23. fxg7 {[%clk 0:00:51]} 23... Ne6 {[%clk 0:00:23.3]}
24. Qc3 {[%clk 0:00:48.2]} 24... Qe7 {[%clk 0:00:22.1]} 25. Rf5 {[%clk
0:00:40.5]} 25... Qh4 {[%clk 0:00:20.5]} 26. Raf1 {[%clk 0:00:18.7]} 26... Qg4+
{[%clk 0:00:16.4]} 27. Kh2 {[%clk 0:00:18.9]} 27... Ng5 {[%clk 0:00:16.4]} 28.
Qd3 {[%clk 0:00:15.6]} 28... Qxh5+ {[%clk 0:00:15.9]} 29. Kg1 {[%clk 0:00:13.9]}
29... Qg4+ {[%clk 0:00:15.6]} 30. Kf2 {[%clk 0:00:12.4]} 30... Rb6 {[%clk
0:00:15.6]} 31. Ke1 {[%clk 0:00:08.6]} 31... Rxb2 {[%clk 0:00:15.2]} 32. Rxg5
{[%clk 0:00:03.7]} 32... Qxg5 {[%clk 0:00:12.8]} 0-1

[Event "*** SCC Grand Prix: Titled Tuesday Blitz"]
[Site "Chess.com"]
[Date "2020.06.23"]
[Round "3"]
[White "Angry_Twin"]
[Black "m_ezat"]
[Result "1-0"]
[WhiteElo "2798"]
[BlackElo "2549"]
[TimeControl "180+1"]
[EndTime "10:28:50 PDT"]
[Termination "Angry_Twin won by resignation"]

1. d4 {[%clk 0:02:58]} 1... Nf6 {[%clk 0:02:59.8]} 2. c4 {[%clk 0:02:42.6]} 2...
g6 {[%clk 0:03:00]} 3. Nf3 {[%clk 0:02:40.3]} 3... Bg7 {[%clk 0:03:00.5]} 4. g3
{[%clk 0:02:39.7]} 4... O-O {[%clk 0:03:00.7]} 5. Bg2 {[%clk 0:02:39.6]} 5... d6
{[%clk 0:03:01.3]} 6. O-O {[%clk 0:02:39.6]} 6... Nc6 {[%clk 0:03:01.7]} 7. Nc3
{[%clk 0:02:35.6]} 7... Bg4 {[%clk 0:03:01.1]} 8. h3 {[%clk 0:02:30.2]} 8...
Bxf3 {[%clk 0:03:01]} 9. Bxf3 {[%clk 0:02:31.1]} 9... Nd7 {[%clk 0:03:01.3]} 10.
e3 {[%clk 0:02:30.5]} 10... e5 {[%clk 0:03:00.8]} 11. dxe5 {[%clk 0:02:27.3]}
11... Ndxe5 {[%clk 0:02:53.3]} 12. Be2 {[%clk 0:02:24.3]} 12... Qd7 {[%clk
0:02:31.2]} 13. Kg2 {[%clk 0:02:22]} 13... Na5 {[%clk 0:02:29.5]} 14. Qd5 {[%clk
0:01:34.7]} 14... Qc6 {[%clk 0:02:25.4]} 15. Qxc6 {[%clk 0:01:33.4]} 15... bxc6
{[%clk 0:02:24.1]} 16. Ne4 {[%clk 0:01:26.6]} 16... Nexc4 {[%clk 0:02:10]} 17.
Rb1 {[%clk 0:01:25.6]} 17... Nb6 {[%clk 0:02:00.7]} 18. b3 {[%clk 0:01:13]}
18... Rae8 {[%clk 0:01:54.5]} 19. Bf3 {[%clk 0:01:10.1]} 19... Nd5 {[%clk
0:01:36.2]} 20. Bd2 {[%clk 0:01:06.9]} 20... Nb7 {[%clk 0:01:28.4]} 21. Rfc1
{[%clk 0:01:06.4]} 21... Nd8 {[%clk 0:01:18.3]} 22. Ba5 {[%clk 0:01:03.7]} 22...
Re7 {[%clk 0:01:06.2]} 23. Nd2 {[%clk 0:00:54.9]} 23... Nb6 {[%clk 0:00:30.6]}
24. Bxc6 {[%clk 0:00:54.2]} 24... Nxc6 {[%clk 0:00:30.3]} 25. Rxc6 {[%clk
0:00:55.1]} 25... f5 {[%clk 0:00:25.3]} 26. Rbc1 {[%clk 0:00:49.8]} 26... Rff7
{[%clk 0:00:25.4]} 27. Bxb6 {[%clk 0:00:39.5]} 27... axb6 {[%clk 0:00:24.8]} 28.
Nf3 {[%clk 0:00:29.2]} 28... h6 {[%clk 0:00:21.2]} 29. Ne1 {[%clk 0:00:29]}
29... Kf8 {[%clk 0:00:20.8]} 30. Nd3 {[%clk 0:00:25.1]} 30... Ke8 {[%clk
0:00:20.4]} 31. Nf4 {[%clk 0:00:24.5]} 31... g5 {[%clk 0:00:19]} 32. Nd5 {[%clk
0:00:24.6]} 32... Re5 {[%clk 0:00:18.9]} 33. Nxc7+ {[%clk 0:00:22.2]} 33... Kd7
{[%clk 0:00:19.1]} 34. Rxb6 {[%clk 0:00:20.5]} 34... Ra5 {[%clk 0:00:16.5]} 35.
Nb5 {[%clk 0:00:19.6]} 35... Rxa2 {[%clk 0:00:13.4]} 36. Rc7+ {[%clk 0:00:19.7]}
36... Ke6 {[%clk 0:00:14]} 37. Rxd6+ {[%clk 0:00:17.5]} 37... Ke5 {[%clk
0:00:14.8]} 38. Rxf7 {[%clk 0:00:17.9]} 1-0

[Event "*** SCC Grand Prix: Titled Tuesday Blitz"]
[Site "Chess.com"]
[Date "2020.06.23"]
[Round "3"]
[White "Semetey"]
[Black "SantoBlue"]
[Result "0-1"]
[WhiteElo "2533"]
[BlackElo "2790"]
[TimeControl "180+1"]
[EndTime "10:28:50 PDT"]
[Termination "SantoBlue won by checkmate"]

1. d4 {[%clk 0:03:00.9]} 1... Nf6 {[%clk 0:02:59.6]} 2. Nc3 {[%clk 0:03:00.8]}
2... d6 {[%clk 0:02:56.6]} 3. e4 {[%clk 0:02:58.9]} 3... e5 {[%clk 0:02:56.7]}
4. Nf3 {[%clk 0:02:59.1]} 4... Nbd7 {[%clk 0:02:56.1]} 5. Bc4 {[%clk 0:02:56.9]}
5... Be7 {[%clk 0:02:56]} 6. O-O {[%clk 0:02:55.3]} 6... O-O {[%clk 0:02:56]} 7.
a4 {[%clk 0:02:51.9]} 7... c6 {[%clk 0:02:55.4]} 8. Ba2 {[%clk 0:02:44.7]} 8...
h6 {[%clk 0:02:50.1]} 9. Re1 {[%clk 0:02:43.8]} 9... Re8 {[%clk 0:02:42.8]} 10.
h3 {[%clk 0:02:42.6]} 10... exd4 {[%clk 0:02:37.2]} 11. Nxd4 {[%clk 0:02:42.4]}
11... Bf8 {[%clk 0:02:37.1]} 12. Bf4 {[%clk 0:02:19.9]} 12... Nc5 {[%clk
0:02:32.1]} 13. Qf3 {[%clk 0:02:19.1]} 13... Ne6 {[%clk 0:02:31.3]} 14. Be3
{[%clk 0:02:10.2]} 14... Ng5 {[%clk 0:02:22.9]} 15. Bxg5 {[%clk 0:02:06.3]}
15... hxg5 {[%clk 0:02:23.8]} 16. Nf5 {[%clk 0:01:47]} 16... g6 {[%clk
0:02:07.5]} 17. Ne3 {[%clk 0:01:46.6]} 17... Be6 {[%clk 0:02:03.1]} 18. Bc4
{[%clk 0:01:29.9]} 18... Bg7 {[%clk 0:01:56.5]} 19. Rad1 {[%clk 0:01:28.7]}
19... Qe7 {[%clk 0:01:20.3]} 20. Qg3 {[%clk 0:01:13.8]} 20... Bxc4 {[%clk
0:00:52.4]} 21. Nxc4 {[%clk 0:01:13.1]} 21... d5 {[%clk 0:00:50.2]} 22. exd5
{[%clk 0:00:46]} 22... Qxe1+ {[%clk 0:00:49.4]} 23. Rxe1 {[%clk 0:00:46.9]}
23... Rxe1+ {[%clk 0:00:49.9]} 24. Kh2 {[%clk 0:00:47.7]} 24... cxd5 {[%clk
0:00:49.2]} 25. Na5 {[%clk 0:00:16.2]} 25... d4 {[%clk 0:00:45.8]} 26. Nb5
{[%clk 0:00:13.9]} 26... Ne4 {[%clk 0:00:45.5]} 27. Qf3 {[%clk 0:00:12.3]} 27...
Nd2 {[%clk 0:00:45.7]} 28. Qxb7 {[%clk 0:00:09.3]} 28... Nf1+ {[%clk 0:00:45]}
29. Kg1 {[%clk 0:00:09.5]} 29... Rae8 {[%clk 0:00:42.9]} 30. Nd6 {[%clk
0:00:08.4]} 30... Nd2+ {[%clk 0:00:41.7]} 31. Kh2 {[%clk 0:00:08]} 31... Be5+
{[%clk 0:00:40]} 32. g3 {[%clk 0:00:08.2]} 32... Bxd6 {[%clk 0:00:39.3]} 33. Nc6
{[%clk 0:00:08.5]} 33... R8e2 {[%clk 0:00:39.2]} 34. Kg2 {[%clk 0:00:08.1]}
34... Rf1 {[%clk 0:00:34.5]} 35. h4 {[%clk 0:00:02]} 35... g4 {[%clk 0:00:19.1]}
36. Nd8 {[%clk 0:00:01.4]} 36... Rexf2# {[%clk 0:00:18.5]} 0-1